Cogmind - Beta 13 @@@ ROGUE MODE // 2024.03.01 @ 14:27:58 Player: Treadwheel Result: Destroyed by G-47 Trooper with Particle Gun Performance ------------- Evolutions (0) 0 Regions Visited (1) 200 Robots Destroyed (17) 85 Value Destroyed (397) 397 Prototype IDs (0) 0 Alien Tech Used (0) 0 Bonus (0) 0 TOTAL SCORE: 682 Bonus ------- None Cogmind --------- Core Integrity 0/250 Matter 295/300 Energy 265/265 System Corruption 0% Temperature Cool (15) Movement Rolling (125) Ox3 Location -10/Materials Parts ------- > --- POWER (1) -------- Reinforced Ion Engine > --- PROPULSION (2) --- Light Treads Wheel > --- UTILITY (2) ------ Large Storage Unit > --- WEAPON (2) ------- Hammer > --- INVENTORY (15) --- Ion Engine Ion Engine Reinforced Ion Engine Reinforced Ion Engine Small Storage Unit Structural Scanner Sensor Array Improved Terrain Scanner Medium Laser Beam Rifle Beam Rifle Grenade Launcher Datajack Hammer Peak State ------------ > --- POWER ------------ Reinforced Ion Engine > --- PROPULSION ------- Light Treads Compact Wheel > --- UTILITY ---------- Large Storage Unit Weight Redist. System > --- WEAPON ----------- Beam Rifle Hammer > --- INVENTORY -------- Ion Engine Ion Engine Reinforced Ion Engine Reinforced Ion Engine Light Treads Light Treads Wheel Small Storage Unit Sensor Array Improved Terrain Scanner EM Pulse Gun Small Laser Beam Rifle Grenade Launcher Hammer [Rating: 12] Favorites ----------- Power Reinforced Ion Engine Engine Reinforced Ion Engine Propulsion Light Treads Treads Light Treads Leg Aluminum Leg Wheel Wheel Utility Large Storage Unit Device Weight Redist. System Storage Large Storage Unit Weapon Hammer Energy Gun Beam Rifle Ballistic Gun Assault Rifle Impact Weapon Hammer Build | -11 -10 ------- Run | Yrd Mat Slots Evolved . | . . Power . | . . Propulsion . | . . Utility . | . . Weapon . | . . Parts Attached 20 | 2 18 Power 4 | . 4 Engine 4 | . 4 Core . | . . Reactor . | . . Propulsion 7 | . 7 Treads 3 | . 3 Leg 1 | . 1 Wheel 3 | . 3 Hover . | . . Flight . | . . Utility 3 | 1 2 Device 2 | 1 1 Storage 1 | . 1 Processor . | . . Hackware . | . . Protection . | . . Artifact . | . . Weapon 6 | 1 5 Energy Gun 2 | . 2 Energy Cannon . | . . Ballistic Gun 2 | 1 1 Ballistic Cannon . | . . Launcher . | . . Special Weapon . | . . Impact Weapon 2 | . 2 Slashing Weapon . | . . Piercing Weapon . | . . Special Melee Weapon . | . . Unidentified Prototypes . | . . Parts Lost 10 | . 10 Power 1 | . 1 Propulsion 4 | . 4 Utility 2 | . 2 Weapon 3 | . 3 Highest Loss Streak 3 | . 3 To Critical Strikes . | . . Average Slot Usage (%) 91 | . 91 Engine 13 | . 13 Treads 12 | . 12 Leg 1 | . 1 Wheel 12 | . 12 Device 9 | . 9 Storage 14 | . 14 Energy Gun 1 | . 1 Ballistic Gun 4 | . 4 Impact Weapon 19 | . 19 Naked Turns . | . . Heaviest Build 35 | 14 35 Greatest Support 26 | 20 26 Greatest Overweight (x) 3 | . 3 Average Overweight (x) . | . 1 Largest Inventory Capacity 15 | 8 15 Average Capacity 14 | 8 14 Most Carried 15 | 7 15 Average Carried 11 | 6 11 Final Capacity 15 | 8 15 Final Carried 14 | 7 14 Class Distribution -------------------- 100% | Mutant Dominant Class ---------------- Mutant | -10/Materials Resources | -11 -10 ----------- Run | Yrd Mat Matter Collected 467 | 232 235 Remotely . | . . Salvage Created 568 | 20 548 Parts 29 | 3 26 Haulers Intercepted 1 | . 1 Recyclers Shooed 1 | . 1 Parts Field Recycled . | . . Retrieved Matter . | . . Parts Self-Destructed . | . . Prevented . | . . Kills | -11 -10 ------- Run | Yrd Mat Combat Hostiles Destroyed 9 | . 9 Melee 5 | . 5 Guns 2 | . 2 Classes Destroyed 7 | 1 6 Worker 2 | . 2 Tunneler 1 | 1 . Hauler 1 | . 1 Recycler 1 | . 1 Operator 1 | . 1 Watcher 2 | . 2 Grunt 9 | . 9 Best Kill Streak 3 | 1 3 Combat Bots Only 2 | . 2 Max Kills in Single Turn 1 | 1 1 Gunslinging . | . . Exploded . | . . Melee 1 | . 1 Uniques/NPCs Destroyed . | . . Combat | -11 -10 -------- Run | Yrd Mat Hostile Shots Fired 110 | . 110 Missed 25 | . 25 Damage Taken 1164 | . 1164 Core 250 | . 250 Absorbed by Shields . | . . Core Remaining (%) 100 | 100 . Volleys Fired 35 | 6 29 Largest 2 | 2 2 Hottest 40 | 40 40 Shots Fired 42 | 12 30 Gun 42 | 12 30 Cannon . | . . Launcher . | . . Special . | . . Kinetic 42 | 12 30 Thermal . | . . Explosive . | . . Electromagnetic . | . . Robot Hit Streak 14 | 2 14 Robot Miss Streak 2 | 1 2 Penetration Max . | . . Secondary Targets . | . . Shots Hit Robots 59 | 8 51 Core Hits 22 | 3 19 Critical Kills 3 | . 3 Critical Parts Destroyed 2 | . 2 Critical Strikes 5 | . 5 Smash 5 | . 5 Melee Attacks 36 | . 36 Impact 36 | . 36 Slashing . | . . Piercing . | . . Sneak Attacks 4 | . 4 Combat Hostiles . | . . Follow-up Attacks 1 | . 1 Damage Inflicted 1281 | 76 1205 Guns 360 | 76 284 Cannons . | . . Explosions . | . . Melee 921 | . 921 Ramming . | . . Kinetic 360 | 76 284 Thermal . | . . Explosive . | . . Electromagnetic . | . . Impact 921 | . 921 Slashing . | . . Piercing . | . . Highest Corruption . | . . Average Corruption . | . . Corruption Purged . | . . Corruption Blocked . | . . Overload Shots . | . . Overflow Damage 185 | . 185 Projectiles . | . . Explosions . | . . Melee 185 | . 185 Knockbacks 6 | . 6 Impact 4 | . 4 Kinetic . | . . Secondary 2 | . 2 Self-Inflicted Damage . | . . Shots . | . . Rammed . | . . Targets Rammed . | . . Kicked . | . . Crushed . | . . Highest Temperature 15 | . 15 Average Temperature 7 | . 7 Received Heat Transfer 624 | . 624 Siege Activations . | . . Robots Corrupted . | . . Combat Hostiles . | . . Parts Fried 8 | . 8 Impact Corruptions 9 | . 9 Robots Melted . | . . Combat Hostiles . | . . Parts Melted . | . . Heat Transferred . | . . Parts Sabotaged . | . . Parts Stolen . | . . Parts Stripped . | . . Power Chain Reactions . | . . Alert | -11 -10 ------- Run | Yrd Mat Peak Influence 112 | 5 112 Initial 3 | . 3 Average 30 | 2 33 Maximum Alert Level . | . . Low Security (%) 100 | 100 100 Level 1 . | . . Level 2 . | . . Level 3 . | . . Level 4 . | . . Level 5 . | . . High Security . | . . Max Security . | . . Squads Dispatched 4 | . 4 Investigation 1 | . 1 Extermination . | . . Reinforcement 3 | . 3 Assault . | . . Garrison . | . . Intercept . | . . Searches Triggered . | . . Construction Impeded . | . . Haulers Reinforced . | . . Active Scanning Responses . | . . Cargo Convoy Interrupts . | . . Stealth | -11 -10 --------- Run | Yrd Mat Distress Signals 1 | . 1 Communications Jammed . | . . Distress Signals . | . . Times Spotted 19 | . 19 Peak Tracking Total 5 | . 5 Tactical Retreats . | . . Traps | -11 -10 ------- Run | Yrd Mat Traps Triggered 3 | . 3 Indirectly . | . . Trap Hack Attempts . | . . Triggered . | . . Disarmed . | . . Reprogrammed . | . . Reused . | . . Traps Extracted . | . . Installed . | . . Triggered . | . . Machines | -11 -10 ---------- Run | Yrd Mat Machines Disabled . | . . Max in Single Turn . | . . Machines Repaired . | . . Machines Dismantled . | . . Machines Sabotaged . | . . Overloaded Fab Kills . | . . Hacking | -11 -10 --------- Run | Yrd Mat Machines Accessed 4 | . 4 Terminals 3 | . 3 Fabricators . | . . Repair Stations . | . . Recycling Units 1 | . 1 Scanalyzers . | . . Garrison Access . | . . Total Hacks 13 | . 13 Successful 2 | . 2 Failed 11 | . 11 Catastrophic 1 | . 1 Database Lockouts . | . . Manual 10 | . 10 Terminals 9 | . 9 Fabricators . | . . Repair Stations . | . . Recycling Units 4 | . 4 Scanalyzers . | . . Garrison Access . | . . Terminal Hacks . | . . Fabricator Hacks . | . . Repair Station Hacks . | . . Recycling Unit Hacks . | . . Scanalyzer . | . . Garrison Access Hacks . | . . Unauthorized Hacks 2 | . 2 Terminals 1 | . 1 Botnet 1 | . 1 Fabricators . | . . Repair Stations . | . . Recycling Units 1 | . 1 Reject 1 | . 1 Scanalyzers . | . . Garrison Access . | . . Data Cores Recovered . | . . Used . | . . Hacking Detections 4 | . 4 Full Trace Events 1 | . 1 Feedback Events . | . . Feedback Blocked . | . . Robot Schematics Acquired . | . . Robots Built . | . . Authchips . | . . Time . | . . Total Robot Build Rating . | . . Part Schematics Acquired . | . . Parts Built . | . . Authchips . | . . Time . | . . Total Part Build Rating . | . . Parts Repaired . | . . Time . | . . Parts Recycled . | . . Recycled Matter . | . . Retrieved Matter . | . . Retrieved Components . | . . Parts Scanalyzed . | . . Part Schematics Acquired . | . . Parts Damaged . | . . Bothacking | -11 -10 ------------ Run | Yrd Mat Used RIF Installer . | . . Robots Hacked . | . . Non-combat . | . . Combat . | . . Robot Hacks Applied . | . . Relay Couplers Released . | . . Fabnet Peak Effective % . | . . Robots Rewired . | . . Allies Hacked . | . . Hacks Repelled . | . . Allies | -11 -10 -------- Run | Yrd Mat Total Allies . | . . Largest Group . | . . Highest-Rated Group . | . . Highest-Rated Ally . | . . Total Orders . | . . Ally Attacks . | . . Total Damage . | . . Kills . | . . Allies Corrupted . | . . Allies Melted . | . . Intel | -11 -10 ------- Run | Yrd Mat Robot Analysis Total . | . . Derelict Logs Recovered . | . . Drone Launches . | . . Drone Recoveries . | . . Exploration | -11 -10 ------------- Run | Yrd Mat Turns Passed 1180 | 90 1090 Spaces Moved 560 | 57 503 Core . | . . Treads 231 | . 231 Legs 101 | 57 44 Wheels 228 | . 228 Hover . | . . Flight . | . . Fastest Speed 100 | 120 100 Average Speed 171 | 120 177 Slowest Speed 260 | 120 260 Overloaded Moves . | . . Propulsion Burnouts . | . . Robots Hopped . | . . Cave-ins Triggered . | . . Exploration Rate (%) 39 | 4 74 Regions Visited 1 Branch Regions . Pre-discovered Areas . | . . Known Exits Taken . | . . Unknown Exits Taken 1 | 1 . Scrap Searched . | . . Spaces Dug . | . . Terrain Destroyed . | . . Melee . | . . Projectile . | . . AOE . | . . Terrain Rammed . | . . Walls Destroyed . | . . Machines Disabled . | . . Actions | -11 -10 --------- Run | Yrd Mat Total 672 | 67 605 Wait 9 | 2 7 Move 559 | 56 503 Hop . | . . Pick Up 12 | 1 11 Fast Attach 8 | 1 7 Attach 6 | . 6 Detach . | . . Swap 6 | 1 5 Drop 2 | . 2 Fire 35 | 6 29 Melee 35 | . 35 Ram . | . . Kick . | . . Crush . | . . Escape Stasis . | . . Rewire . | . . Trap . | . . Miscellaneous . | . . Route ------- -11/Scrapyard -10/Materials (discovered 3 exits: [*Mat x2] / [*Min]) History --------- Turn | Location | Event 1 | -11/Scrapyard | Discovered new exit (range 3) 91 | -11/Scrapyard | Entered Materials 229 | -10/Materials | Lost 3 parts (1n1u1w) 304 | -10/Materials | Build established: Mutant 407 | -10/Materials | Core integrity fell below 50% 506 | -10/Materials | Discovered new exit (range 3) 844 | -10/Materials | Discovered new exit (range 12) 1159 | -10/Materials | Discovered new exit (range 14) 1168 | -10/Materials | Core integrity fell below 20% 1181 | -10/Materials | Destroyed by G-47 Trooper with Particle Gun Last Messages --------------- 01134_ Connecting with Recycling Unit... >>Trojan(Reject) Trojan loaded successfully. Testing... Ejection routine running. 01134_ ALERT: Suspicious activity at Recycling Unit M001. Dispatching Investigation squad. 01142_ W-16 Scout sends out distress signal. 01153_ Lgt. Treads destroyed. 01154_ Hammer destroyed. 01159_ EXIT=FOUND 01167_ G-34 Mercenary suffers critical hit (Smash). 01167_ G-34 Mercenary destroyed. 01178_ G-34 Mercenary suffers critical hit (Smash). 01178_ Destroyed Ion Engine. 01178_ Destroyed Heat Sink. 01178_ G-34 Mercenary system corrupted by crushing effect. 01179_ G-34 Mercenary system terminally corrupted. 01179_ Sml. Laser fried. 01179_ Aluminum Leg fried. Map ----- +----------------------------------------------------+ | #??# #"" #???? | | #??# ==* #"T #???? | | #??# == ####"" [ #???? | | #??# =* #??# =#???? | | #??# #??########???? | | #??# ############??? | | ######??# ## #??? | | ????????# """ ## """ """ #??? | | ????????# """ ## """ """ #??? | | ????????# """ %# """ """ #??? | | ######### % + #??? | | % % # #??? | | ##########+##### # #??? | | #???# # #??? | | #???# ###########??? | | #???# #????????????? | | #???# #????????????? | | #???# #?##########?? | | #???# #?# #?? | | #???# #?#""" T #?? | | ##+############# ###""" #?? | | #""" #?? | | < # #?? | | ^ #""" #?? | | ???##### "Y" #####""" #?? | | ???????# """ #???#"""*@ #?? | | ???????# #???# =g= #?? | | ???????# ########g#####?? | | ???????# % #????? | | ???????# #????? | | ???????# """ """ """ #????? | | ???????# """ """ """ "#????? | | ???????# """ """ """ T#????? | | ???????# "#????? | | ???????# #????? | | ???????? #????? | | ???????########## #### #????? | | ????????????????# #??# #????? | | ????????????????# #?? ????? | | ????????????????# ??? ????? | | ????????????????+ ??? ???? | | ????????????????# ??? < ???? | | ????????????????# ??? ???? | | ?????????????????##???? ?????? | | ???????????????????????????????? | | ???????????????????????????????? | | ???????????????????????????????? | | ???????????????????????????????? | | ???????????????????????????????? | | ???????????????????????????????? | +----------------------------------------------------+ Best States ------------- Heat Dissipation 25 Energy Generation 12 Energy Capacity 265 Matter Stores 300 Matter Capacity 300 Sight Range 16 Terrain Scan Density 10 Additional Mass Support 6 Evasion (%) 55 Recoil Reduction 1 Item Schematics ----------------- None Robot Schematics ------------------ None Fabricated ------------ Nothing Alien Tech Used ----------------- None Achievements -------------- None Challenges ------------ None Game ------ Seed VortexPointyRay Manual? 0 Play Time 00:12:26 Cumulative 43.2 hours Start 2024.03.01 @ 14:13:02 End 2024.03.01 @ 14:27:58 Sessions 1 Manual Loads 0 Difficulty Rogue Special Mode None Game No. 24 Rogue 24 Adventurer 0 Explorer 0 Win Type - Total 1 Types 1/0/0/0/0/0/0/0/0 Lore% 26 Gallery% 42 Achievement% 34 Wizard Run 0 Options --------- Layout 0 ASCII 0 Keyboard 0 Movement Numpad Keybinds 0 Fullscreen 1 Font 12/Smallcaps Map View 83x54 Zoom Use 0% Tactical HUD 1 Map Filters NONE Filters NONE Steam 1 RUN: c92f1d95-c2ef-46b5-ba6d-52a4c0732f9b